Workbook

Sheet september2010
A1: Løn | B1: =PROPER(TEXT(A4,"dd mmmm åååå")) & PROPER(TEXT(A36," - dd mmmm åååå")) -> 01 September 2019 - 03 Oktober 2019 | I1: Uge : | J1: =IF(A4="","",TRUNC((A4-WEEKDAY(A4,2)-DATE(YEAR(A4+4-WEEKDAY(A4,2)),1,-10))/7)) -> 35 | K1: - | M1: =IF(A25="","",TRUNC((A25-WEEKDAY(A25,2)-DATE(YEAR(A25+4-WEEKDAY(A25,2)),1,-10))/7)) -> 38 | V1: Time beregning: | AG1: 06:00:00 | AH1: 18:00:00 | AI1: 03:00:00
A2: Lønart | V2: Betalt pause ved vagt over 5 timer | Z2: 00:25:00 | AA2: minutter | AB2: 00:00:00 | AC2: 06:00:00 | AD2: 17:00:00 | AE2: 14:00:00
A3: Dato | B3: Dag | D3: Start | E3: Slut | F3: Pause | G3: Arb. Tid | H3: Overtid 1-3 time | I3: Overtid 4 - time | J3: Forskudt tid alle dage 18-23 | L3: Natarbejde 23-06 | N3: Lørdag tillæg 15 - 24 | O3: Søndag tillæg 00 - 24 | P3: Optjent afspadsering | Q3: Afholdt afspadsering | R3: Syge Timer | S3: norm
A4: 2019-09-01 | B4: =PROPER(TEXT(A4,"ddd")) -> Sø | C4: =HelligdagsNavn(A4,0,0) ->  | D4: 07:00:00 | E4: 16:00:00 | F4: 00:30:00 | G4: =IF(D4="","",(E4-D4)+(D4>E4)-F4) -> 0.3541666667 | H4: =IF(G4="",0,IF(WEEKDAY(A4,2)=7,0,IF(G4>S4,MIN(G4-S4,$AI$1),0))) -> 00:00:00 | I4: =IF(G4="","",IF(G4>S4+H4,G4-(S4+H4),"")) -> 08:30:00 | J4: =ColTime(T.!$J$3,T.!$L$3,D4,E4) -> 00:00:00 | L4: =ColTime(TIME(T.!$J$4,0,0),TIME(T.!$L$4,0,0),D4,E4) -> 00:00:00 | N4: =IF(WEEKDAY(A4,2)=6,ColTime(TIME(T.!J5,0,0),TIME(T.!L5,0,0),D4,E4),"") ->  | O4: =IF(OR(C4<>"",WEEKDAY(A4,2)=7),ColTime(TIME(0,0,0),TIME(24,0,0),D4,E4),"") -> 09:00:00 | P4: =IFERROR(H4+I4,"") -> 08:30:00 | S4: =CHOOSE(WEEKDAY(A4,2),norm!C$1,norm!C$2,norm!C$3,norm!C$4,norm!C$5,norm!C$6,norm!C$7) -> 00:00:00 | V4: =IF(D4="","",HOUR(D4)) -> 7 | W4: =IF(D4="","",MINUTE(D4)) -> 0 | X4: =IF(D4="","",TIME(HOUR(D4),MINUTE(D4),0)) -> 07:00:00 | Y4: =IF(E4="","",HOUR(E4)) -> 16 | Z4: =IF(E4="","",MINUTE(E4)) -> 0 | AA4: 02:00:00 | AB4: 09:30:00 | AC4: 11:30:00 | AG4: =MIN(G4-S4,3) -> 0.3541666667
A5: =A4+1 -> 2019-09-02 | B5: =PROPER(TEXT(A5,"ddd")) -> Ma | C5: =HelligdagsNavn(A5,0,0) ->  | D5: 13:45:00 | E5: 21:30:00 | F5: 00:30:00 | G5: =IF(D5="","",(E5-D5)+(D5>E5)-F5) -> 0.3020833333 | H5: =IF(G5="",0,IF(WEEKDAY(A5,2)=7,0,IF(G5>S5,MIN(G5-S5,$AI$1),0))) -> 00:00:00 | I5: =IF(G5="","",IF(G5>S5+H5,G5-(S5+H5),"")) ->  | J5: =ColTime(T.!$J$3,T.!$L$3,D5,E5) -> 03:30:00 | L5: =ColTime(TIME(T.!$J$4,0,0),TIME(T.!$L$4,0,0),D5,E5) -> 00:00:00 | N5: =IF(WEEKDAY(A5,2)=6,ColTime(TIME(15,0,0),TIME(24,0,0),D5,E5),"") ->  | P5: =IFERROR(H5+I5,"") ->  | S5: =CHOOSE(WEEKDAY(A5,2),norm!C$1,norm!C$2,norm!C$3,norm!C$4,norm!C$5,norm!C$6,norm!C$7) -> 07:30:00 | V5: 13 | W5: 45 | X5: 13:45:00 | Y5: 21 | Z5: 30 | AA5: =IF(E5="","",TIME(HOUR(E5),MINUTE(E5),0)) -> 21:30:00 | AH5: Der taste kun i de Gule celler
A6: =A5+1 -> 2019-09-03 | B6: =PROPER(TEXT(A6,"ddd")) -> Ti | D6: 22:00:00 | E6: 05:45:00 | F6: 00:30:00 | G6: 0.3020833333 | H6: 00:00:00 | J6: =ColTime(T.!$J$3,T.!$L$3,D6,E6) -> 01:00:00 | L6: =ColTime(TIME(T.!$J$4,0,0),TIME(T.!$L$4,0,0),D6,E6) -> 06:45:00 | P6: =IFERROR(H6+I6,"") ->  | S6: =CHOOSE(WEEKDAY(A6,2),norm!C$1,norm!C$2,norm!C$3,norm!C$4,norm!C$5,norm!C$6,norm!C$7) -> 07:30:00 | V6: 22 | W6: 0 | X6: 22:00:00 | Y6: 5 | Z6: 45 | AA6: 05:45:00
A7: 2019-09-04 | B7: On | D7: 05:00:00 | E7: 16:45:00 | F7: 00:30:00 | G7: 0.46875 | H7: 03:00:00 | I7: 00:45:00 | J7: =ColTime(T.!$J$3,T.!$L$3,D7,E7) -> 00:00:00 | L7: =ColTime(TIME(T.!$J$4,0,0),TIME(T.!$L$4,0,0),D7,E7) -> 01:00:00 | P7: =IFERROR(H7+I7,"") -> 03:45:00 | S7: =CHOOSE(WEEKDAY(A7,2),norm!C$1,norm!C$2,norm!C$3,norm!C$4,norm!C$5,norm!C$6,norm!C$7) -> 07:30:00 | V7: 5 | W7: 0 | X7: 05:00:00 | Y7: 16 | Z7: 45 | AA7: 16:45:00
A8: 2019-09-05 | B8: To | H8: =IF(G8="",0,IF(WEEKDAY(A8,2)=7,0,IF(G8>S8,MIN(G8-S8,$AI$1),0))) -> 00:00:00 | I8: =IF(G8="","",IF(G8>S8+H8,G8-(S8+H8),"")) ->  | J8: =ColTime(T.!$J$3,T.!$L$3,D8,E8) -> 00:00:00 | L8: =ColTime(TIME(T.!$J$4,0,0),TIME(T.!$L$4,0,0),D8,E8) -> 00:00:00 | P8: =IFERROR(H8+I8,"") ->  | S8: =CHOOSE(WEEKDAY(A8,2),norm!C$1,norm!C$2,norm!C$3,norm!C$4,norm!C$5,norm!C$6,norm!C$7) -> 07:30:00
A9: 2019-09-06 | B9: Fr | D9: 06:00:00 | E9: 19:00:00 | F9: 00:30:00 | G9: 0.5208333333 | H9: 03:00:00 | I9: 02:30:00 | J9: =ColTime(T.!$J$3,T.!$L$3,D9,E9) -> 01:00:00 | L9: =ColTime(TIME(T.!$J$4,0,0),TIME(T.!$L$4,0,0),D9,E9) -> 00:00:00 | O9: =IF(OR(C9<>"",WEEKDAY(A9,2)=7),ColTime(TIME(0,0,0),TIME(24,0,0),D9,E9),"") ->  | P9: =IFERROR(H9+I9,"") -> 05:30:00 | S9: =CHOOSE(WEEKDAY(A9,2),norm!C$1,norm!C$2,norm!C$3,norm!C$4,norm!C$5,norm!C$6,norm!C$7) -> 07:00:00 | V9: 6 | W9: 0 | X9: 06:00:00 | Y9: 19 | Z9: 0 | AA9: 19:00:00
A10: 2019-09-07 | B10: Lø | D10: 07:00:00 | E10: 19:00:00 | G10: 0.5 | H10: 03:00:00 | I10: 09:00:00 | J10: =ColTime(T.!$J$3,T.!$L$3,D10,E10) -> 01:00:00 | L10: =ColTime(TIME(T.!$J$4,0,0),TIME(T.!$L$4,0,0),D10,E10) -> 00:00:00 | N10: 04:00:00 | O10: =IF(OR(C10<>"",WEEKDAY(A10,2)=7),ColTime(TIME(0,0,0),TIME(24,0,0),D10,E10),"") ->  | P10: 12:00:00 | S10: =CHOOSE(WEEKDAY(A10,2),norm!C$1,norm!C$2,norm!C$3,norm!C$4,norm!C$5,norm!C$6,norm!C$7) -> 00:00:00 | V10: 7 | W10: 0 | X10: 07:00:00 | Y10: 19 | Z10: 0 | AA10: 19:00:00
A11: =A10+1 -> 2019-09-08 | B11: =PROPER(TEXT(A11,"ddd")) -> Sø | C11: =HelligdagsNavn(A11,0,0) ->  | G11: =IF(D11="","",(E11-D11)+(D11>E11)-F11) ->  | H11: =IF(G11="",0,IF(WEEKDAY(A11,2)=7,0,IF(G11>S11,MIN(G11-S11,$AI$1),0))) -> 00:00:00 | I11: =IF(G11="","",IF(G11>S11+H11,G11-(S11+H11),"")) ->  | J11: =ColTime(T.!$J$3,T.!$L$3,D11,E11) -> 00:00:00 | L11: =ColTime(TIME(T.!$J$4,0,0),TIME(T.!$L$4,0,0),D11,E11) -> 00:00:00 | O11: 00:00:00 | S11: =CHOOSE(WEEKDAY(A11,2),norm!C$1,norm!C$2,norm!C$3,norm!C$4,norm!C$5,norm!C$6,norm!C$7) -> 00:00:00
A12: =A11+1 -> 2019-09-09 | B12: =PROPER(TEXT(A12,"ddd")) -> Ma | C12: =HelligdagsNavn(A12,0,0) ->  | H12: 00:00:00 | J12: =ColTime(T.!$J$3,T.!$L$3,D12,E12) -> 00:00:00 | L12: =ColTime(TIME(T.!$J$4,0,0),TIME(T.!$L$4,0,0),D12,E12) -> 00:00:00 | S12: =CHOOSE(WEEKDAY(A12,2),norm!C$1,norm!C$2,norm!C$3,norm!C$4,norm!C$5,norm!C$6,norm!C$7) -> 07:30:00
A13: =A12+1 -> 2019-09-10 | B13: =PROPER(TEXT(A13,"ddd")) -> Ti | H13: 00:00:00 | J13: =ColTime(T.!$J$3,T.!$L$3,D13,E13) -> 00:00:00 | L13: =ColTime(TIME(T.!$J$4,0,0),TIME(T.!$L$4,0,0),D13,E13) -> 00:00:00 | S13: =CHOOSE(WEEKDAY(A13,2),norm!C$1,norm!C$2,norm!C$3,norm!C$4,norm!C$5,norm!C$6,norm!C$7) -> 07:30:00
A14: 2019-09-11 | B14: On | H14: 00:00:00 | J14: =ColTime(T.!$J$3,T.!$L$3,D14,E14) -> 00:00:00 | L14: =ColTime(TIME(T.!$J$4,0,0),TIME(T.!$L$4,0,0),D14,E14) -> 00:00:00 | S14: =CHOOSE(WEEKDAY(A14,2),norm!C$1,norm!C$2,norm!C$3,norm!C$4,norm!C$5,norm!C$6,norm!C$7) -> 07:30:00
A15: 2019-09-12 | B15: To | H15: 00:00:00 | J15: =ColTime(T.!$J$3,T.!$L$3,D15,E15) -> 00:00:00 | L15: =ColTime(TIME(T.!$J$4,0,0),TIME(T.!$L$4,0,0),D15,E15) -> 00:00:00 | S15: =CHOOSE(WEEKDAY(A15,2),norm!C$1,norm!C$2,norm!C$3,norm!C$4,norm!C$5,norm!C$6,norm!C$7) -> 07:30:00
A16: 2019-09-13 | B16: Fr | H16: 00:00:00 | J16: =ColTime(T.!$J$3,T.!$L$3,D16,E16) -> 00:00:00 | L16: =ColTime(TIME(T.!$J$4,0,0),TIME(T.!$L$4,0,0),D16,E16) -> 00:00:00 | S16: =CHOOSE(WEEKDAY(A16,2),norm!C$1,norm!C$2,norm!C$3,norm!C$4,norm!C$5,norm!C$6,norm!C$7) -> 07:00:00
A17: 2019-09-14 | B17: Lø | H17: 00:00:00 | J17: =ColTime(T.!$J$3,T.!$L$3,D17,E17) -> 00:00:00 | L17: =ColTime(TIME(T.!$J$4,0,0),TIME(T.!$L$4,0,0),D17,E17) -> 00:00:00 | N17: 00:00:00 | S17: =CHOOSE(WEEKDAY(A17,2),norm!C$1,norm!C$2,norm!C$3,norm!C$4,norm!C$5,norm!C$6,norm!C$7) -> 00:00:00
A18: =A17+1 -> 2019-09-15 | B18: =PROPER(TEXT(A18,"ddd")) -> Sø | C18: =HelligdagsNavn(A18,0,0) ->  | G18: =IF(D18="","",(E18-D18)+(D18>E18)-F18) ->  | H18: =IF(G18="",0,IF(WEEKDAY(A18,2)=7,0,IF(G18>S18,MIN(G18-S18,$AI$1),0))) -> 00:00:00 | I18: =IF(G18="","",IF(G18>S18+H18,G18-(S18+H18),"")) ->  | J18: =ColTime(T.!$J$3,T.!$L$3,D18,E18) -> 00:00:00 | L18: =ColTime(TIME(T.!$J$4,0,0),TIME(T.!$L$4,0,0),D18,E18) -> 00:00:00 | O18: =IF(OR(C18<>"",WEEKDAY(A18,2)=7),ColTime(TIME(0,0,0),TIME(24,0,0),D18,E18),"") -> 00:00:00 | P18: =IFERROR(H18+I18,"") ->  | S18: =CHOOSE(WEEKDAY(A18,2),norm!C$1,norm!C$2,norm!C$3,norm!C$4,norm!C$5,norm!C$6,norm!C$7) -> 00:00:00
A19: =A18+1 -> 2019-09-16 | B19: =PROPER(TEXT(A19,"ddd")) -> Ma | C19: =HelligdagsNavn(A19,0,0) ->  | H19: 00:00:00 | J19: =ColTime(T.!$J$3,T.!$L$3,D19,E19) -> 00:00:00 | L19: =ColTime(TIME(T.!$J$4,0,0),TIME(T.!$L$4,0,0),D19,E19) -> 00:00:00 | S19: =CHOOSE(WEEKDAY(A19,2),norm!C$1,norm!C$2,norm!C$3,norm!C$4,norm!C$5,norm!C$6,norm!C$7) -> 07:30:00
A20: =A19+1 -> 2019-09-17 | B20: =PROPER(TEXT(A20,"ddd")) -> Ti | H20: 00:00:00 | J20: =ColTime(T.!$J$3,T.!$L$3,D20,E20) -> 00:00:00 | L20: =ColTime(TIME(T.!$J$4,0,0),TIME(T.!$L$4,0,0),D20,E20) -> 00:00:00 | S20: =CHOOSE(WEEKDAY(A20,2),norm!C$1,norm!C$2,norm!C$3,norm!C$4,norm!C$5,norm!C$6,norm!C$7) -> 07:30:00
A21: 2019-09-18 | B21: On | H21: 00:00:00 | J21: =ColTime(T.!$J$3,T.!$L$3,D21,E21) -> 00:00:00 | L21: =ColTime(TIME(T.!$J$4,0,0),TIME(T.!$L$4,0,0),D21,E21) -> 00:00:00 | S21: =CHOOSE(WEEKDAY(A21,2),norm!C$1,norm!C$2,norm!C$3,norm!C$4,norm!C$5,norm!C$6,norm!C$7) -> 07:30:00
A22: 2019-09-19 | B22: To | H22: 00:00:00 | J22: =ColTime(T.!$J$3,T.!$L$3,D22,E22) -> 00:00:00 | L22: =ColTime(TIME(T.!$J$4,0,0),TIME(T.!$L$4,0,0),D22,E22) -> 00:00:00 | S22: =CHOOSE(WEEKDAY(A22,2),norm!C$1,norm!C$2,norm!C$3,norm!C$4,norm!C$5,norm!C$6,norm!C$7) -> 07:30:00
A23: 2019-09-20 | B23: Fr | H23: 00:00:00 | J23: =ColTime(T.!$J$3,T.!$L$3,D23,E23) -> 00:00:00 | L23: =ColTime(TIME(T.!$J$4,0,0),TIME(T.!$L$4,0,0),D23,E23) -> 00:00:00 | S23: =CHOOSE(WEEKDAY(A23,2),norm!C$1,norm!C$2,norm!C$3,norm!C$4,norm!C$5,norm!C$6,norm!C$7) -> 07:00:00
A24: 2019-09-21 | B24: Lø | H24: 00:00:00 | J24: =ColTime(T.!$J$3,T.!$L$3,D24,E24) -> 00:00:00 | L24: =ColTime(TIME(T.!$J$4,0,0),TIME(T.!$L$4,0,0),D24,E24) -> 00:00:00 | N24: 00:00:00 | S24: =CHOOSE(WEEKDAY(A24,2),norm!C$1,norm!C$2,norm!C$3,norm!C$4,norm!C$5,norm!C$6,norm!C$7) -> 00:00:00
A25: =A24+1 -> 2019-09-22 | B25: =PROPER(TEXT(A25,"ddd")) -> Sø | C25: =HelligdagsNavn(A25,0,0) ->  | H25: 00:00:00 | J25: =ColTime(T.!$J$3,T.!$L$3,D25,E25) -> 00:00:00 | L25: =ColTime(TIME(T.!$J$4,0,0),TIME(T.!$L$4,0,0),D25,E25) -> 00:00:00 | O25: 00:00:00 | S25: =CHOOSE(WEEKDAY(A25,2),norm!C$1,norm!C$2,norm!C$3,norm!C$4,norm!C$5,norm!C$6,norm!C$7) -> 00:00:00
A26: =A25+1 -> 2019-09-23 | B26: =PROPER(TEXT(A26,"ddd")) -> Ma | C26: =HelligdagsNavn(A26,0,0) ->  | H26: 00:00:00 | J26: =ColTime(T.!$J$3,T.!$L$3,D26,E26) -> 00:00:00 | L26: =ColTime(TIME(T.!$J$4,0,0),TIME(T.!$L$4,0,0),D26,E26) -> 00:00:00 | S26: =CHOOSE(WEEKDAY(A26,2),norm!C$1,norm!C$2,norm!C$3,norm!C$4,norm!C$5,norm!C$6,norm!C$7) -> 07:30:00
A27: =A26+1 -> 2019-09-24 | B27: =PROPER(TEXT(A27,"ddd")) -> Ti | H27: 00:00:00 | J27: =ColTime(T.!$J$3,T.!$L$3,D27,E27) -> 00:00:00 | L27: =ColTime(TIME(T.!$J$4,0,0),TIME(T.!$L$4,0,0),D27,E27) -> 00:00:00 | S27: =CHOOSE(WEEKDAY(A27,2),norm!C$1,norm!C$2,norm!C$3,norm!C$4,norm!C$5,norm!C$6,norm!C$7) -> 07:30:00
A28: 2019-09-25 | B28: On | H28: 00:00:00 | J28: =ColTime(T.!$J$3,T.!$L$3,D28,E28) -> 00:00:00 | L28: =ColTime(TIME(T.!$J$4,0,0),TIME(T.!$L$4,0,0),D28,E28) -> 00:00:00 | S28: =CHOOSE(WEEKDAY(A28,2),norm!C$1,norm!C$2,norm!C$3,norm!C$4,norm!C$5,norm!C$6,norm!C$7) -> 07:30:00
A29: 2019-09-26 | B29: To | H29: 00:00:00 | J29: =ColTime(T.!$J$3,T.!$L$3,D29,E29) -> 00:00:00 | L29: =ColTime(TIME(T.!$J$4,0,0),TIME(T.!$L$4,0,0),D29,E29) -> 00:00:00 | S29: =CHOOSE(WEEKDAY(A29,2),norm!C$1,norm!C$2,norm!C$3,norm!C$4,norm!C$5,norm!C$6,norm!C$7) -> 07:30:00
A30: 2019-09-27 | B30: Fr | H30: 00:00:00 | J30: =ColTime(T.!$J$3,T.!$L$3,D30,E30) -> 00:00:00 | L30: =ColTime(TIME(T.!$J$4,0,0),TIME(T.!$L$4,0,0),D30,E30) -> 00:00:00 | S30: =CHOOSE(WEEKDAY(A30,2),norm!C$1,norm!C$2,norm!C$3,norm!C$4,norm!C$5,norm!C$6,norm!C$7) -> 07:00:00
A31: 2019-09-28 | B31: Lø | H31: 00:00:00 | J31: =ColTime(T.!$J$3,T.!$L$3,D31,E31) -> 00:00:00 | L31: =ColTime(TIME(T.!$J$4,0,0),TIME(T.!$L$4,0,0),D31,E31) -> 00:00:00 | N31: 00:00:00 | S31: =CHOOSE(WEEKDAY(A31,2),norm!C$1,norm!C$2,norm!C$3,norm!C$4,norm!C$5,norm!C$6,norm!C$7) -> 00:00:00
A32: 2019-09-29 | B32: Sø | H32: 00:00:00 | J32: =ColTime(T.!$J$3,T.!$L$3,D32,E32) -> 00:00:00 | L32: =ColTime(TIME(T.!$J$4,0,0),TIME(T.!$L$4,0,0),D32,E32) -> 00:00:00 | O32: 00:00:00 | S32: =CHOOSE(WEEKDAY(A32,2),norm!C$1,norm!C$2,norm!C$3,norm!C$4,norm!C$5,norm!C$6,norm!C$7) -> 00:00:00
A33: 2019-09-30 | B33: Ma | H33: 00:00:00 | J33: =ColTime(T.!$J$3,T.!$L$3,D33,E33) -> 00:00:00 | L33: =ColTime(TIME(T.!$J$4,0,0),TIME(T.!$L$4,0,0),D33,E33) -> 00:00:00 | S33: =CHOOSE(WEEKDAY(A33,2),norm!C$1,norm!C$2,norm!C$3,norm!C$4,norm!C$5,norm!C$6,norm!C$7) -> 07:30:00
A34: 2019-10-01 | B34: Ti | H34: 00:00:00 | J34: =ColTime(T.!$J$3,T.!$L$3,D34,E34) -> 00:00:00 | L34: =ColTime(TIME(T.!$J$4,0,0),TIME(T.!$L$4,0,0),D34,E34) -> 00:00:00 | S34: =CHOOSE(WEEKDAY(A34,2),norm!C$1,norm!C$2,norm!C$3,norm!C$4,norm!C$5,norm!C$6,norm!C$7) -> 07:30:00 | V34: =IF(D34="","",HOUR(D34)) ->  | W34: =IF(D34="","",MINUTE(D34)) ->  | X34: =IF(D34="","",TIME(HOUR(D34),MINUTE(D34),0)) ->  | Y34: =IF(E34="","",HOUR(E34)) ->  | Z34: =IF(E34="","",MINUTE(E34)) ->  | AA34: =IF(E34="","",TIME(HOUR(E34),MINUTE(E34),0)) -> 
A35: 2019-10-02 | B35: On | H35: 00:00:00 | J35: =ColTime(T.!$J$3,T.!$L$3,D35,E35) -> 00:00:00 | L35: =ColTime(TIME(T.!$J$4,0,0),TIME(T.!$L$4,0,0),D35,E35) -> 00:00:00 | S35: =CHOOSE(WEEKDAY(A35,2),norm!C$1,norm!C$2,norm!C$3,norm!C$4,norm!C$5,norm!C$6,norm!C$7) -> 07:30:00 | V35: =IF(D35="","",HOUR(D35)) ->  | W35: =IF(D35="","",MINUTE(D35)) ->  | X35: =IF(D35="","",TIME(HOUR(D35),MINUTE(D35),0)) ->  | Y35: =IF(E35="","",HOUR(E35)) ->  | Z35: =IF(E35="","",MINUTE(E35)) ->  | AA35: =IF(E35="","",TIME(HOUR(E35),MINUTE(E35),0)) -> 
A36: 2019-10-03 | B36: To | H36: 00:00:00 | J36: =ColTime(T.!$J$3,T.!$L$3,D36,E36) -> 00:00:00 | L36: =ColTime(TIME(T.!$J$4,0,0),TIME(T.!$L$4,0,0),D36,E36) -> 00:00:00 | S36: =CHOOSE(WEEKDAY(A36,2),norm!C$1,norm!C$2,norm!C$3,norm!C$4,norm!C$5,norm!C$6,norm!C$7) -> 07:30:00 | V36: =IF(D36="","",HOUR(D36)) ->  | W36: =IF(D36="","",MINUTE(D36)) ->  | X36: =IF(D36="","",TIME(HOUR(D36),MINUTE(D36),0)) ->  | Y36: =IF(E36="","",HOUR(E36)) ->  | Z36: =IF(E36="","",MINUTE(E36)) ->  | AA36: =IF(E36="","",TIME(HOUR(E36),MINUTE(E36),0)) -> 
A37: Total timer | G37: =IF(SUM(G9:G36)<>"0",SUM(G4:G36),"") -> 2.447916667 | H37: =IF(SUM(H4:H36)<>"0",SUM(H4:H36),"") -> 0.375 | I37: =IF(SUM(I4:I36)<>"0",SUM(I4:I36),"") -> 0.8645833333 | J37: =IF(SUM(J4:J36)<>"0",SUM(J4:J36),"") -> 0.2708333333 | L37: =SUM(L4:M36) -> 07:45:00 | N37: =IF(SUM(N4:N36)<>"0",SUM(N4:N36),"") -> 0.1666666667 | O37: =IF(SUM(O4:O36)<>"0",SUM(O4:O36),"") -> 09:00:00 | P37: =SUM(P4:P36) -> 1.239583333 | Q37: =SUM(Q4:Q36) -> 0
A38: Timer 1/100 | G38: =IF(G37<>"",ROUND(G37*24,2),"") -> 58.75 | H38: =IF(H37<>"",ROUND(H37*24,2),"") -> 9 | I38: 20.75 | J38: =IF(J37<>"",ROUND(J37*24,2),"") -> 6.5 | L38: =IF(L37<>"",ROUND(L37*24,2),"") -> 7.75 | N38: =IF(N37<>"",ROUND(N37*24,2),"") -> 4 | O38: 9 | P38: 29.75 | Q38: 0
A39: Satser | G39: =Satser!B7 -> 107.35 | H39: =Satser!B9 -> 36.35 | I39: =Satser!B12 -> 58.1 | J39: =Satser!B17 -> 25.6 | L39: =Satser!B18 -> 34.2 | N39: =Satser!B19 -> 45.1 | O39: =Satser!B20 -> 50.6
G40: =IF(G37<>"",G38*G39,"") -> 6306.8125 | H40: =IF(H37<>"",H38*H39,"") -> 327.15 | I40: 1205.575 | J40: =IF(J37<>"",J38*J39,"") -> 166.4 | L40: =IF(L37<>"",L38*L38,"") -> 60.0625 | N40: =IF(N37<>"",N38*N39,"") -> 180.4 | O40: 455.4
A42: Lønart
A43: 3025 | G43: =G37 -> 2.447916667
A44: 3425 | G44: =H37 -> 0.375
A45: 3428 | G45: =I37 -> 0.8645833333
A46: Timer | G46: =SUM(G43:G45) -> 3.6875 | H46: =IF(G46<>"",ROUND(G46*24,2),"") -> 88.5
H47: =G39*H46 -> 9500.475

Sheet Satser
A3: Timeløn | B3: 114.42
A4: specielt tillæg
A5: Chauffør tillæg
A7: Samlet timeløn | B7: 107.35 | D7: 108.7
A9: overtidstillæg 50% | B9: 36.35 | D9: 36.5
A10: pr. time | B10: =B7+B9 -> 143.7
A12: overtidstillæg 100% | B12: 58.1 | D12: 58.9
A13: pr. time | B13: =B12+B7 -> 165.45
B15: 108.65 | D15: 110.15
A17: Aftentillæg | B17: 25.6 | F17: Arbejde mellem 18:00 og 23:00
A18: Nattillæg | B18: 34.2 | F18: Arbejde mellem 23:00 og 06:00
A19: Lørdags tillæg | B19: 45.1 | F19: Lørdag mellem 15:00 og 24:00
A20: Søndags tillæg | B20: 50.6 | F20: Søndagstillæg
B26: 07:24:00

Sheet norm
A1: mandag | B1: 7.5 | C1: 07:30:00 | E1: 03:00:00
A2: tirsdag | B2: 7.5 | C2: 07:30:00 | E2: 10:30:00
A3: onsdag | B3: 7.5 | C3: 07:30:00
A4: torsdag | B4: 7.5 | C4: 07:30:00
A5: fredag | B5: 7 | C5: 07:00:00
A6: lørdag | B6: 0 | C6: 00:00:00
A7: søndag | B7: 0 | C7: 00:00:00

Sheet T.
B2: Timeløn | E2: Start | F2: Slut
A3: Normal løn | B3: 114.42 | E3: 06:00:00 | F3: 18:00:00 | H3: Aften tillæg | I3: Fra kl. | J3: 18:00:00 | K3: Til kl. | L3: 23:00:00
A4: Aftentillæg | B4: 25.6 | E4: 18:00:00 | F4: 23:00:00 | H4: Nat tillæg | I4: Fra kl. | J4: 23 | K4: Til kl. | L4: 6
A5: Nattillæg | B5: 34.2 | E5: 23:00:00 | F5: 06:00:00 | H5: Lørdags tillæg | I5: Fra kl. | J5: 15 | K5: Til kl. | L5: 24
A6: Lørdagstillæg | B6: 45.1 | E6: 15:00:00 | F6: 1 | H6: Søn og helligdags tillæg | I6: Fra kl. | J6: 0 | K6: Til kl. | L6: 24
A7: Søn- og helligdage | B7: 50.6 | E7: 00:00:00 | F7: 23:59:00

Sheet Ark2

Sheet Ark3
